fUST/lending_fUST_20251025
["ID","MTS","AMOUNT","RATE_DAILY","PERIOD"]
[392351997,1761394028729,619.0708471,0.00018551,2]
[392352001,1761394031789,282.45,0.00018542,3]
[392352002,1761394032034,-40000.0,0.00018552,2]
[392352003,1761394032466,500.0,0.00018551,2]
[392352004,1761394032502,467.68704723,0.00018551,2]
[392352005,1761394032535,500.0,0.00018551,2]
[392352006,1761394032601,500.0,0.00018551,2]
[392352007,1761394032631,500.0,0.00018551,2]
[392352008,1761394032667,500.0,0.00018551,2]
[392352009,1761394032705,500.0,0.00018551,2]
[392352010,1761394032739,500.0,0.00018551,2]
[392352014,1761394040247,346.56342745,0.00018551,2]
[392352016,1761394042446,847.39,0.00018542,3]
[392352017,1761394043330,2019.20458436,0.00018552,2]
[392352018,1761394043355,2980.79541564,0.00018552,2]
[392352019,1761394045994,500.0,0.00018551,2]
[392352020,1761394051275,3620.63852654,0.00018552,2]
[392352021,1761394054614,500.0,0.00018551,2]
[392352022,1761394057723,1200.0,0.00018551,2]
[392352023,1761394063269,242.52,0.00018542,3]
[392352024,1761394066982,502.50527046,0.00018551,2]
[392352025,1761394067464,453.55078736,0.00018552,2]
[392352026,1761394083291,169.22,0.00015225,2]
[392352027,1761394083591,169.22,0.00015225,2]
[392352028,1761394104848,196.0,0.00016,2]
[392352029,1761394105090,196.0,0.0001621,2]
[392352030,1761394105333,196.0,0.0001642,2]
[392352031,1761394105576,196.0,0.0001663,2]
[392352032,1761394105846,196.0,0.0001684,2]
[392352033,1761394106068,196.0,0.0001705,2]
[392352034,1761394106318,196.0,0.0001726,2]
[392352035,1761394106554,196.0,0.0001747,2]
[392352036,1761394106905,196.0,0.0001768,2]
[392352037,1761394107051,196.0,0.0001789,2]
[392352038,1761394107430,284.25834898,0.000181,2]
[392352039,1761394113915,150.0,0.00017423,30]
[392352040,1761394114328,150.0,0.00018253,30]
[392352041,1761394114772,150.0,0.00019083,30]
[392352042,1761394179799,268.39672454,0.00018461,2]
[392352043,1761394184559,150.0,0.00017415,30]
[392352044,1761394184960,150.0,0.00018244,30]
[392352045,1761394200101,544.34803598,0.00018461,2]
[392352049,1761394223376,196.0,0.00016,2]
[392352050,1761394223614,196.0,0.00016263,2]
[392352051,1761394223870,196.0,0.00016525,2]
[392352052,1761394224092,196.0,0.00016788,2]
[392352053,1761394224333,196.0,0.0001705,2]
[392352054,1761394224554,196.0,0.00017313,2]
[392352055,1761394224784,196.0,0.00017575,2]
[392352056,1761394225016,196.0,0.00017838,2]
[392352057,1761394225254,348.60076478,0.000181,2]
[392352120,1761394232333,-727.58,0.00018542,3]
[392352121,1761394232342,-300.0,0.0001855,2]
[392352122,1761394232352,-1200.0,0.0001855,2]
[392352123,1761394232362,-233.44089973,0.0001855,2]
[392352124,1761394232372,-355.60043798,0.0001855,2]
[392352125,1761394232383,-50000.0,0.00018551,2]
[392352126,1761394232392,-1238.12,0.00018551,2]
[392352127,1761394232401,-1734.97,0.00018551,2]
[392352128,1761394232411,-500.0,0.00018551,2]
[392352129,1761394232421,-516.88748265,0.00018551,2]
[392352270,1761394256690,150.0,0.00017334,30]
[392352271,1761394261984,2225.41911774,0.00018496,2]
[392352272,1761394271330,483.08728348,0.00018461,2]
[392352273,1761394272613,250.0,0.000201,10]
[392352274,1761394273253,483.08728345,0.00018484,2]
[392352275,1761394323301,163.21674625,0.00018429,2]
[392352278,1761394462022,666.0,0.00017549,2]
[392352279,1761394480348,476.3045315,0.0001845,2]
[392352280,1761394554570,1440.95834715,0.00018496,2]
[392352281,1761394575798,392.83794,0.000201,10]
[392352282,1761394584785,264.33281615,0.00018496,2]
[392352283,1761394584808,3861.0938314,0.00018496,2]
[392352284,1761394593366,5000.0,0.00018496,2]
[392352285,1761394600859,157.44634348,0.00018429,2]
[392352286,1761394609465,409.95466955,0.0001845,2]
[392352287,1761394611466,409.95466955,0.00018453,2]
[392352288,1761394613451,409.95466955,0.00018456,2]
[392352289,1761394615483,409.95466955,0.00018458,2]
[392352290,1761394616085,4352.09693118,0.00018496,2]
[392352291,1761394617475,409.95466955,0.00018461,2]
[392352292,1761394628677,1383.2734539,0.00017543,2]
[392352293,1761394656898,211.0960333,0.00017543,2]
[392352294,1761394765563,416.76646508,0.00018442,2]
[392352295,1761394815510,335.86518377,0.00017826,2]
[392352296,1761394870470,150.0,0.000201,10]
[392352297,1761394970941,177.42126025,0.00017826,2]
[392352299,1761395031876,367.0,0.00018304,2]
[392352300,1761395036785,367.0,0.00018469,2]
[392352301,1761395042609,339.71732477,0.00018328,2]
[392352302,1761395042632,27.28267523,0.00018328,2]
[392352303,1761395045836,364.67065691,0.0001844,2]
[392352304,1761395074086,367.0,0.00018431,2]
[392352305,1761395095406,163.1529479,0.0001768,2]
[392352308,1761395121825,4170.0,0.0001827,2]
[392352310,1761395165025,214.66511427,0.00018204,2]
[392352312,1761395219111,4693.23860569,0.00018441,2]
[392352313,1761395219134,10000.01,0.00018441,2]
[392352314,1761395219157,10000.01,0.00018441,2]
[392352316,1761395219179,10000.01,0.00018441,2]
[392352317,1761395219201,10000.01,0.00018441,2]
[392352318,1761395219222,10000.01,0.00018441,2]
[392352319,1761395219243,10000.01,0.00018441,2]
[392352320,1761395219264,10000.01,0.00018441,2]
[392352321,1761395219285,10000.01,0.00018441,2]
[392352322,1761395219306,10000.01,0.00018441,2]
[392352323,1761395233329,1921.24050534,0.00018297,2]
[392352324,1761395234837,-300.0,0.0001844,2]
[392352325,1761395238183,-2351.43010671,0.00018441,2]
[392352326,1761395238239,-10000.01,0.00018441,2]
[392352327,1761395238443,-10000.01,0.00018441,2]
[392352328,1761395238581,-10000.01,0.00018441,2]
[392352329,1761395238721,-10000.01,0.00018441,2]
[392352330,1761395238877,-10000.01,0.00018441,2]
[392352331,1761395239037,-10000.01,0.00018441,2]
[392352332,1761395239359,-10000.01,0.00018441,2]
[392352333,1761395240707,-10000.01,0.00018441,2]
[392352334,1761395240858,-10000.01,0.00018441,2]
[392352335,1761395240992,-10000.01,0.00018441,2]
[392352336,1761395252861,-10000.01,0.00018441,2]
[392352337,1761395253120,-10000.01,0.00018441,2]
[392352338,1761395253241,-10000.01,0.00018441,2]
[392352339,1761395253359,-10000.01,0.00018441,2]
[392352340,1761395253462,-10000.01,0.00018441,2]
[392352341,1761395253630,-10000.01,0.00018441,2]
[392352342,1761395253730,-10000.01,0.00018441,2]
[392352343,1761395257439,150.4564342,0.00018063,7]
[392352344,1761395257672,-10000.01,0.00018441,2]
[392352345,1761395257884,-10000.01,0.00018441,2]
[392352346,1761395261775,-1200.0,0.0001844,2]
[392352347,1761395261816,-7600.01,0.00018441,2]
[392352348,1761395261867,-10000.01,0.00018441,2]
[392352349,1761395262000,-10000.01,0.00018441,2]
[392352350,1761395262167,-10000.01,0.00018441,2]
[392352351,1761395262300,-10000.01,0.00018441,2]
[392352352,1761395262446,-10000.01,0.00018441,2]
[392352353,1761395262594,-10000.01,0.00018441,2]
[392352354,1761395262704,-10000.01,0.00018441,2]
[392352355,1761395264976,-1018.46528011,0.00018385,2]
[392352356,1761395266657,7963.07943978,0.00018,2]
[392352357,1761395266683,10000.01,0.00018,2]
[392352358,1761395266710,3108.90317965,0.00018,2]
[392352359,1761395273048,614.7923742,0.00017827,2]
[392352360,1761395275055,227.58630667,0.00017826,2]
[392352361,1761395276696,409.65535201,0.00017826,2]
[392352362,1761395278304,728.27618136,0.00017826,2]
[392352363,1761395278895,163.07995858,0.00018317,2]
[392352364,1761395279292,163.07995855,0.00018325,2]
[392352365,1761395279593,163.07995855,0.00018333,2]
[392352366,1761395279868,-1018.46528009,0.00018401,2]
[392352367,1761395279912,163.07995855,0.00018341,2]
[392352368,1761395280019,1137.93153337,0.00017826,2]
[392352369,1761395293265,300.0,0.000184,2]
[392352370,1761395294904,-1018.46528009,0.00018417,2]
[392352372,1761395298278,1009.01260244,0.00015,2]
[392352373,1761395304472,300.0,0.000184,2]
[392352374,1761395309950,-1018.46528009,0.00018433,2]
[392352375,1761395314973,300.0,0.000184,2]
[392352376,1761395320768,2345.48712207,0.0001,2]
[392352377,1761395321698,261.33651974,0.00015,2]
[392352378,1761395324978,-4645.0387124,0.00018441,2]
[392352379,1761395325090,-709.9325752,0.00018441,2]
[392352380,1761395326125,319.08682484,0.00018437,2]
[392352381,1761395331723,388.0,0.00018083,2]
[392352382,1761395336730,388.0,0.00018171,2]
[392352383,1761395340072,-1018.46528009,0.00018449,2]
[392352384,1761395342555,388.0,0.00018061,2]
[392352385,1761395343791,174.35744522,0.00018385,2]
[392352392,1761395355114,-343.82573729,0.00018485,2]
[392352393,1761395356168,205.68315899,0.00018428,2]
[392352394,1761395358226,378.0,0.00018343,2]
[392352396,1761395388553,10000.01,0.00018439,2]
[392352397,1761395388576,10000.01,0.00018439,2]
[392352398,1761395388597,10000.01,0.00018439,2]
[392352399,1761395388619,10000.01,0.00018439,2]
[392352400,1761395388642,10000.01,0.00018439,2]
[392352401,1761395388662,10000.01,0.00018439,2]
[392352402,1761395388684,10000.01,0.00018439,2]
[392352403,1761395388707,10000.01,0.00018439,2]
[392352404,1761395388728,10000.01,0.00018439,2]
[392352405,1761395388749,10000.01,0.00018439,2]
[392352406,1761395401707,300.0,0.00018438,2]
[392352407,1761395404340,300.0,0.00018438,2]
[392352408,1761395404390,300.0,0.00018438,2]
[392352409,1761395404897,300.0,0.00018438,2]
[392352410,1761395405212,1200.0,0.00018438,2]
[392352411,1761395406440,300.0,0.00018438,2]
[392352412,1761395413602,178.89,0.00018429,2]
[392352413,1761395419336,2026.09392184,0.00017827,2]
[392352414,1761395420849,294.6536896,0.00017826,2]
[392352415,1761395422551,530.37664128,0.00017826,2]
[392352416,1761395423320,500.0,0.00018438,2]
[392352417,1761395423406,500.0,0.00018438,2]
[392352418,1761395423628,500.0,0.00018438,2]
[392352419,1761395423849,500.0,0.00018438,2]
[392352420,1761395424082,500.0,0.00018438,2]
[392352421,1761395424305,500.0,0.00018438,2]
[392352422,1761395424459,942.89180672,0.00017826,2]
[392352423,1761395426073,1473.26844801,0.00017826,2]
[392352424,1761395426339,500.0,0.00018438,2]
[392352425,1761395427824,2121.50656513,0.00017826,2]
[392352426,1761395429722,1431.96653886,0.00017826,2]
[392352427,1761395429741,1455.63961923,0.00017826,2]
[392352428,1761395429767,500.0,0.00018438,2]
[392352429,1761395430017,500.0,0.00018438,2]
[392352430,1761395430457,500.0,0.00018438,2]
[392352453,1761395432173,-91902.30089244,0.00018439,2]
[392352455,1761395432185,-21355.53504776,0.00018439,2]
[392352456,1761395432196,-345.04659234,0.00018439,2]
[392352470,1761395432407,491.77917354,0.00018438,2]
[392352479,1761395432463,269.46006164,0.00018438,2]
[392352501,1761395433715,500.0,0.00018438,2]
[392352502,1761395433752,500.0,0.00018438,2]
[392352503,1761395433784,164.96883515,0.00018438,2]
[392352504,1761395434009,500.0,0.00018438,2]
[392352505,1761395434038,500.0,0.00018438,2]
[392352506,1761395434072,500.0,0.00018438,2]
[392352507,1761395434099,500.0,0.00018438,2]
[392352508,1761395434129,500.0,0.00018438,2]
[392352509,1761395434161,500.0,0.00018438,2]
[392352510,1761395434189,163.81782224,0.00018438,2]
[392352511,1761395434218,489.20598898,0.00018438,2]
[392352512,1761395434247,500.0,0.00018438,2]
[392352513,1761395434274,258.98014908,0.00018438,2]
[392352514,1761395434305,500.0,0.00018438,2]
[392352515,1761395434338,206.15835014,0.00018438,2]
[392352516,1761395434361,293.84164986,0.00018438,2]
[392352517,1761395434392,500.0,0.00018438,2]
[392352518,1761395434424,500.0,0.00018438,2]
[392352519,1761395434451,500.0,0.00018438,2]
[392352520,1761395434487,500.0,0.00018438,2]
[392352521,1761395434518,500.0,0.00018438,2]
[392352522,1761395434550,500.0,0.00018438,2]
[392352523,1761395434577,500.0,0.00018438,2]
[392352524,1761395434609,500.0,0.00018438,2]
[392352525,1761395434638,500.0,0.00018438,2]
[392352526,1761395434665,500.0,0.00018438,2]
[392352527,1761395434695,500.0,0.00018438,2]
[392352528,1761395434740,500.0,0.00018438,2]
[392352529,1761395434769,500.0,0.00018438,2]
[392352530,1761395434798,500.0,0.00018438,2]
[392352531,1761395434826,500.0,0.00018438,2]
[392352532,1761395434879,500.0,0.00018438,2]
[392352533,1761395434918,500.0,0.00018438,2]
[392352534,1761395434955,217.16087082,0.00018438,2]
[392352535,1761395434992,500.0,0.00018438,2]
[392352536,1761395435030,489.00747932,0.00018438,2]
[392352537,1761395435055,10.99252068,0.00018438,2]
[392352538,1761395435089,500.0,0.00018438,2]
[392352539,1761395435131,500.0,0.00018438,2]
[392352540,1761395435163,500.0,0.00018438,2]
[392352541,1761395435200,500.0,0.00018438,2]
[392352542,1761395435232,500.0,0.00018438,2]
[392352543,1761395435263,500.0,0.00018438,2]
[392352544,1761395435302,500.0,0.00018438,2]
[392352545,1761395435346,500.0,0.00018438,2]
[392352546,1761395435375,500.0,0.00018438,2]
[392352547,1761395435403,640.29564519,0.00018438,2]
[392352548,1761395435441,500.0,0.00018438,2]
[392352549,1761395435473,500.0,0.00018438,2]
[392352550,1761395435503,500.0,0.00018438,2]
[392352551,1761395435537,500.0,0.00018438,2]
[392352552,1761395435569,500.0,0.00018438,2]
[392352553,1761395435605,500.0,0.00018438,2]
[392352554,1761395435639,500.0,0.00018438,2]
[392352555,1761395435675,500.0,0.00018438,2]
[392352556,1761395435712,500.0,0.00018438,2]
[392352557,1761395435748,348.72183413,0.00018438,2]
[392352558,1761395435773,160.52233733,0.00018438,2]
[392352559,1761395435803,500.0,0.00018438,2]
[392352560,1761395435847,500.0,0.00018438,2]
[392352561,1761395435876,500.0,0.00018438,2]
[392352562,1761395435920,500.0,0.00018438,2]
[392352563,1761395435951,500.0,0.00018438,2]
[392352564,1761395436081,500.0,0.00018438,2]
[392352565,1761395436111,500.0,0.00018438,2]
[392352566,1761395436153,500.0,0.00018438,2]
[392352567,1761395436183,500.0,0.00018438,2]
[392352568,1761395436223,500.0,0.00018438,2]
[392352569,1761395436320,500.0,0.00018438,2]
[392352570,1761395437513,500.0,0.00018438,2]
[392352571,1761395439292,221.88543242,0.00018439,2]
[392352588,1761395440391,-20112.11473313,0.00018439,2]
[392352650,1761395441120,500.0,0.00018438,2]
[392352651,1761395442372,531.71,0.00018438,2]
[392352653,1761395443731,-1242.7606029,0.00018439,2]
[392352655,1761395445756,500.0,0.00018438,2]
[392352656,1761395449777,500.0,0.00018438,2]
[392352657,1761395451242,500.0,0.00018438,2]
[392352658,1761395454756,1085.89223025,0.00018439,2]
[392352659,1761395454779,1728.65014503,0.00018439,2]
[392352660,1761395458661,514.48577647,0.00018438,2]
[392352661,1761395461938,500.0,0.00018438,2]
[392352662,1761395463494,300.0,0.00018438,2]
[392352663,1761395464387,500.0,0.00018438,2]
[392352664,1761395539744,172.7863316,0.00017454,2]
[392352665,1761395576216,6983.9456935,0.00017438,2]
[392352666,1761395580575,300.55002185,0.00017826,2]
[392352667,1761395582485,343.14225351,0.00017826,2]
[392352668,1761395690329,395.3470981,0.00018241,2]
[392352669,1761395725676,208.8679946,0.00017826,2]
[392352670,1761395727497,375.58642788,0.00017826,2]
[392352671,1761395779542,1219.78417896,0.00018233,2]
[392352672,1761395779566,694.00870936,0.00018233,2]
[392352673,1761395812857,-172.25369249,0.00018341,2]
[392352674,1761395812893,-172.25369247,0.00018377,2]
[392352675,1761395812931,-500.0,0.000184,2]
[392352676,1761395812969,-172.25369247,0.00018413,2]
[392352677,1761395813003,-973.4,0.00018428,3]
[392352678,1761395813041,-486.7,0.00018428,3]
[392352679,1761395813079,-243.35,0.00018429,3]
[392352680,1761395813114,-730.08,0.00018429,3]
[392352681,1761395813152,-347.46459167,0.00018433,2]
[392352682,1761395813189,-479.69494342,0.00018435,2]
[392352683,1761395813232,-500.0,0.00018435,2]
[392352684,1761395813605,-500.0,0.00018435,2]
[392352685,1761395813639,-500.0,0.00018435,2]
[392352686,1761395813674,-500.0,0.00018435,2]
[392352687,1761395813710,-500.0,0.00018435,2]
[392352688,1761395813745,-500.0,0.00018435,2]
[392352689,1761395813779,-500.0,0.00018435,2]
[392352690,1761395813814,-500.0,0.00018435,2]
[392352691,1761395813850,-500.0,0.00018435,2]
[392352692,1761395813886,-500.0,0.00018435,2]
[392352693,1761395813919,-500.0,0.00018435,2]
[392352694,1761395814112,-500.0,0.00018435,2]
[392352695,1761395814145,-500.0,0.00018435,2]
[392352696,1761395814180,-554.81423643,0.00018435,2]
[392352697,1761395814214,-500.0,0.00018435,2]
[392352698,1761395814251,-500.0,0.00018435,2]
[392352699,1761395814292,-500.0,0.00018435,2]
[392352700,1761395814325,-476.0814152,0.00018435,2]
[392352701,1761395814362,-500.0,0.00018435,2]
[392352702,1761395814395,-500.0,0.00018435,2]
[392352703,1761395814430,-438.21869674,0.00018435,2]
[392352704,1761395814540,-61.78130326,0.00018435,2]
[392352705,1761395814578,-500.0,0.00018435,2]
[392352706,1761395814614,-500.0,0.00018435,2]
[392352707,1761395814647,-153.23214073,0.00018435,2]
[392352708,1761395814683,-500.0,0.00018435,2]
[392352709,1761395814718,-500.0,0.00018435,2]
[392352710,1761395814753,-235.82128824,0.00018435,2]
[392352711,1761395814787,-500.0,0.00018435,2]
[392352712,1761395814820,-500.0,0.00018435,2]
[392352713,1761395814854,-500.0,0.00018435,2]
[392352714,1761395814887,-231.52906533,0.00018435,2]
[392352715,1761395814921,-500.0,0.00018435,2]
[392352716,1761395814955,-300.0,0.00018435,2]
[392352717,1761395815032,-1186.53,0.00018435,2]
[392352718,1761395815066,-270.22721919,0.00018435,2]
[392352719,1761395815098,-551.78026785,0.00018435,2]
[392352720,1761395815130,-1662.68,0.00018435,2]
[392352721,1761395817843,-5843.25027134,0.00018436,2]
[392352722,1761395817937,-10000.01,0.00018436,2]
[392352723,1761395817961,-10000.01,0.00018436,2]
[392352724,1761395818188,-10000.01,0.00018436,2]
[392352725,1761395818223,-10000.01,0.00018436,2]
[392352726,1761395818238,-4156.70972866,0.00018436,2]
[392352727,1761395818248,-300.0,0.00018436,2]
[392352728,1761395818258,-300.0,0.00018436,2]
[392352729,1761395818272,-1200.0,0.00018436,2]
[392352730,1761395818281,-300.0,0.00018436,2]
[392352731,1761395818291,-300.0,0.00018436,2]
[392352732,1761395818300,-1200.0,0.00018437,2]
[392352733,1761395818311,-500.0,0.00018437,2]
[392352734,1761395818321,-500.0,0.00018437,2]
[392352735,1761395818330,-500.0,0.00018437,2]
[392352736,1761395818341,-500.0,0.00018437,2]
[392352737,1761395818350,-243.30027134,0.00018437,2]
[392352738,1761395818366,-256.69972866,0.00018437,2]
[392352739,1761395818375,-500.0,0.00018437,2]
[392352740,1761395818385,-500.0,0.00018437,2]
[392352741,1761395818395,-500.0,0.00018437,2]
[392352742,1761395818404,-500.0,0.00018437,2]
[392352743,1761395818414,-500.0,0.00018437,2]
[392352744,1761395818423,-500.0,0.00018437,2]
[392352745,1761395818432,-500.0,0.00018437,2]
[392352746,1761395818442,-1734.02473633,0.00018437,2]
[392352747,1761395818451,-1762.32,0.00018437,2]
[392352748,1761395818460,-500.19237435,0.00018437,2]
[392352749,1761395818469,-500.0,0.00018437,2]
[392352750,1761395818478,-500.0,0.00018437,2]
[392352751,1761395818488,-500.0,0.00018437,2]
[392352752,1761395818498,-500.0,0.00018437,2]
[392352753,1761395818507,-246.77316066,0.00018437,2]
[392352754,1761395818751,-253.22683934,0.00018437,2]
[392352755,1761395818781,-500.0,0.00018437,2]
[392352756,1761395818812,-651.81,0.00018437,2]
[392352757,1761395818842,-500.0,0.00018437,2]
[392352758,1761395818869,-500.0,0.00018438,2]
[392352759,1761395818897,-500.0,0.00018438,2]
[392352760,1761395818926,-500.0,0.00018438,2]
[392352761,1761395818955,-500.0,0.00018438,2]
[392352762,1761395818983,-500.0,0.00018438,2]
[392352763,1761395819012,-500.0,0.00018438,2]
[392352764,1761395819128,-500.0,0.00018438,2]
[392352765,1761395819157,-150.98989555,0.00018438,2]
[392352766,1761395819186,-500.0,0.00018438,2]
[392352767,1761395819215,-500.0,0.00018438,2]
[392352768,1761395819242,-500.0,0.00018438,2]
[392352769,1761395819272,-500.0,0.00018438,2]
[392352770,1761395819301,-500.0,0.00018438,2]
[392352771,1761395819331,-500.0,0.00018438,2]
[392352772,1761395819359,-500.0,0.00018438,2]
[392352773,1761395819388,-500.0,0.00018438,2]
[392352774,1761395819415,-198.0302089,0.00018438,2]
[392352775,1761395819528,-301.9697911,0.00018438,2]
[392352776,1761395819555,-500.0,0.00018438,2]
[392352777,1761395819583,-500.0,0.00018438,2]
[392352778,1761395819611,-500.0,0.00018438,2]
[392352779,1761395819638,-503.04841535,0.00018438,2]
[392352780,1761395819666,-500.0,0.00018438,2]
[392352781,1761395819695,-1116.97,0.00018438,2]
[392352782,1761395819723,-500.0,0.00018438,2]
[392352783,1761395819754,-500.0,0.00018438,2]
[392352784,1761395820323,-500.0,0.00018438,2]
[392352785,1761395820341,-156.0335871,0.00018438,2]
[392352786,1761395824730,-1070.43,0.00018435,2]
[392352787,1761395824761,-300.0,0.00018437,2]
[392352788,1761395824791,-343.9664129,0.00018438,2]
[392352789,1761395824820,-500.0,0.00018438,2]
[392352790,1761395824850,-1868.74,0.00018438,2]
[392352791,1761395824882,-500.0,0.00018438,2]
[392352792,1761395824914,-333.7371742,0.00018438,2]
[392352793,1761395825020,-166.2628258,0.00018438,2]
[392352794,1761395825050,-1938.4,0.00018438,2]
[392352795,1761395825078,-500.0,0.00018438,2]
[392352796,1761395825106,-500.0,0.00018438,2]
[392352797,1761395825134,-1694.08,0.00018438,2]
[392352798,1761395825427,-166.2628258,0.00018438,2]
[392352799,1761395825441,-333.7371742,0.00018438,2]
[392352800,1761395825450,-68.7871742,0.00018438,2]
[392352801,1761395827759,-431.2128258,0.00018438,2]
[392352802,1761395827786,-592.01,0.00018438,2]
[392352803,1761395827812,-1082.78,0.00018438,2]
[392352804,1761395827839,-500.0,0.00018438,2]
[392352805,1761395827866,-500.0,0.00018438,2]
[392352806,1761395827893,-897.4043484,0.00018438,2]
[392352807,1761395828096,-1993.1956516,0.00018438,2]
[392352808,1761395830774,-500.0,0.00018437,2]
[392352809,1761395830801,-500.0,0.00018438,2]
[392352810,1761395830830,-500.0,0.00018438,2]
[392352812,1761395830857,-1195.06,0.00018438,2]
[392352813,1761395830883,-500.0,0.00018438,2]
[392352814,1761395830909,-781.25,0.00018438,2]
[392352815,1761395830936,-500.0,0.00018438,2]
[392352816,1761395830963,-500.0,0.00018438,2]
[392352817,1761395831091,-47.39,0.00018438,2]
[392352818,1761395831144,5000.0,0.00018297,2]
[392352819,1761395833773,-452.61,0.00018438,2]
[392352820,1761395833805,-2416.42,0.00018438,2]
[392352821,1761395833835,-500.0,0.00018438,2]
[392352822,1761395833863,-500.0,0.00018438,2]
[392352823,1761395833946,-2261.95,0.00018438,2]
[392352824,1761395839197,5000.0,0.00018297,2]
[392352825,1761395841236,4075.0021887,0.00017441,2]
[392352826,1761395847524,190.3970847,0.00018297,2]
[392352827,1761395855622,5000.0,0.00018297,2]
[392352828,1761395863806,3876.32626232,0.00018297,2]
[392352829,1761395879613,5000.0,0.00018297,2]
[392352830,1761395882060,-276.58616224,0.00018335,2]
[392352831,1761395882089,-500.0,0.00018435,2]
[392352832,1761395882117,-500.0,0.00018435,2]
[392352833,1761395882147,-500.0,0.00018435,2]
[392352834,1761395882175,-1623.49,0.00018435,2]
[392352835,1761395882201,-500.0,0.00018435,2]
[392352836,1761395882231,-500.0,0.00018435,2]
[392352837,1761395882365,-1199.85767552,0.00018435,2]
[392352838,1761395882869,171.88841229,0.00017728,2]
[392352839,1761395883252,191.14,0.00015135,2]
[392352840,1761395883751,191.14,0.00015135,2]
[392352841,1761395884864,309.08974298,0.00017728,2]
[392352842,1761395887393,4136.24209277,0.00018297,2]
[392352843,1761395887965,-279.2009717,0.00018338,2]
[392352844,1761395887998,-300.0,0.00018434,2]
[392352845,1761395888033,-469.39232448,0.00018435,2]
[392352846,1761395888067,-2770.16,0.00018435,2]
[392352847,1761395888100,-352.46129845,0.00018436,2]
[392352848,1761395888134,-457.58081074,0.00018436,2]
[392352849,1761395888375,-742.41918926,0.00018436,2]
[392352850,1761395893991,-1857.63,0.00018437,2]
[392352851,1761395894023,-500.0,0.00018437,2]
[392352852,1761395894057,-1037.67,0.00018437,2]
[392352853,1761395894087,-500.0,0.00018437,2]
[392352854,1761395894118,-440.01,0.00018438,2]
[392352855,1761395894214,-1329.39,0.00018438,2]
[392352856,1761395903083,5000.0,0.00018297,2]
[392352857,1761395911321,1727.47581446,0.00018297,2]
[392352858,1761395926786,5000.0,0.00018297,2]
[392352859,1761395927248,-1145.27,0.00018435,2]
[392352860,1761395927277,-748.7,0.00018435,2]
[392352861,1761395927311,-2315.73,0.00018435,2]
[392352862,1761395927406,-1580.61,0.00018435,2]
[392352863,1761395930092,-195.22085147,0.00018339,2]
[392352864,1761395930123,-2282.77,0.00018435,2]
[392352865,1761395930155,-1204.15,0.00018437,2]
[392352866,1761395930187,-467.84493808,0.00018437,2]
[392352867,1761395930218,-237.58351134,0.00018437,2]
[392352868,1761395930248,-172.75713738,0.00018437,2]
[392352869,1761395930279,-359.53569869,0.00018437,2]